[Event "Titled Tuesday Blitz February 07 Late 2023"]
[White "Hansen, Torbjorn Ringdal"]
[Black "Curtis, John"]
[WhiteFideId "1501720"]
[BlackFideId "3200256"]
[WhiteElo "2432"]
[BlackElo "2292"]
[Result "1-0"]
[Round "03"]
[TimeControl "180+2"]
[Date "2023.02.07"]
[WhiteClock "0:00:52"]
[BlackClock "0:00:10"]

1. c4 {[%clk 0:03:00]}  Nf6 {[%clk 0:02:49]} 2. g3 {[%clk 0:03:00]}  g6 {[%clk 0:02:44]} 3. Bg2 {[%clk 0:03:01]}  Bg7 {[%clk 0:02:45]} 4. d4 {[%clk 0:03:01]}  O-O {[%clk 0:02:45]} 5. Nc3 {[%clk 0:03:01]}  d6 {[%clk 0:02:46]} 6. Nf3 {[%clk 0:03:01]}  Nc6 {[%clk 0:02:46]} 7. O-O {[%clk 0:03:01]}  e5 {[%clk 0:02:44]} 8. dxe5 {[%clk 0:02:57]}  Nxe5 {[%clk 0:02:43]} 9. Nxe5 {[%clk 0:02:54]}  dxe5 {[%clk 0:02:43]} 10. Qxd8 {[%clk 0:02:53]}  Rxd8 {[%clk 0:02:42]} 11. Bg5 {[%clk 0:02:54]}  Re8 {[%clk 0:02:00]} 12. Nb5 {[%clk 0:02:34]}  Re7 {[%clk 0:01:55]} 13. Rad1 {[%clk 0:02:34]}  Be6 {[%clk 0:01:21]} 14. Bxb7 {[%clk 0:02:29]}  Rb8 {[%clk 0:01:20]} 15. Bg2 {[%clk 0:02:18]}  Bxc4 {[%clk 0:01:20]} 16. Nxa7 {[%clk 0:02:18]}  Bxe2 {[%clk 0:01:19]} 17. Nc6 {[%clk 0:02:17]}  Ree8 {[%clk 0:01:09]} 18. Nxb8 {[%clk 0:02:07]}  Rxb8 {[%clk 0:01:09]} 19. b3 {[%clk 0:02:01]}  Bxd1 {[%clk 0:01:06]} 20. Rxd1 {[%clk 0:02:01]}  h6 {[%clk 0:01:00]} 21. Be3 {[%clk 0:01:58]}  Ng4 {[%clk 0:00:53]} 22. Ba7 {[%clk 0:01:53]}  Rc8 {[%clk 0:00:50]} 23. Bb7 {[%clk 0:01:48]}  Re8 {[%clk 0:00:47]} 24. Rd7 {[%clk 0:01:43]}  e4 {[%clk 0:00:45]} 25. Rxc7 {[%clk 0:01:41]}  e3 {[%clk 0:00:44]} 26. fxe3 {[%clk 0:01:39]}  Nxe3 {[%clk 0:00:44]} 27. Rc8 {[%clk 0:01:36]}  Rxc8 {[%clk 0:00:43]} 28. Bxc8 {[%clk 0:01:37]}  Nc2 {[%clk 0:00:40]} 29. Kf2 {[%clk 0:01:26]}  f5 {[%clk 0:00:24]} 30. Be6+ {[%clk 0:01:23]}  Kf8 {[%clk 0:00:23]} 31. Bc5+ {[%clk 0:01:21]}  Ke8 {[%clk 0:00:23]} 32. a4 {[%clk 0:01:17]}  Bd4+ {[%clk 0:00:23]} 33. Bxd4 {[%clk 0:01:17]}  Nxd4 {[%clk 0:00:23]} 34. Bc4 {[%clk 0:01:17]}  Ke7 {[%clk 0:00:18]} 35. Ke3 {[%clk 0:01:16]}  Nc6 {[%clk 0:00:18]} 36. Bb5 {[%clk 0:01:12]}  Ne5 {[%clk 0:00:16]} 37. a5 {[%clk 0:01:10]}  Kd6 {[%clk 0:00:15]} 38. a6 {[%clk 0:01:06]}  Ng4+ {[%clk 0:00:15]} 39. Kd4 {[%clk 0:01:04]}  Kc7 {[%clk 0:00:15]} 40. Kc5 {[%clk 0:00:53]}  Nxh2 {[%clk 0:00:13]} 41. Bc6 {[%clk 0:00:53]}  Kb8 {[%clk 0:00:10]} 42. Kb6 {[%clk 0:00:52]} 1-0


[Site "https://www.chess.com"]

[Event "Titled Tuesday Blitz February 07 Late 2023"]
[White "Necula, Iulian"]
[Black "Ozates, Tuna"]
[WhiteFideId "1232380"]
[BlackFideId "6354521"]
[WhiteElo "1851"]
[BlackElo "2251"]
[Result "0-1"]
[Round "03"]
[TimeControl "180+2"]
[Date "2023.02.07"]
[WhiteClock "0:00:08"]
[BlackClock "0:00:51"]

1. d4 {[%clk 0:03:00]}  Nf6 {[%clk 0:02:56]} 2. Nc3 {[%clk 0:03:00]}  e6 {[%clk 0:02:57]} 3. Bf4 {[%clk 0:03:00]}  d5 {[%clk 0:02:57]} 4. e3 {[%clk 0:02:56]}  a6 {[%clk 0:02:56]} 5. Nf3 {[%clk 0:02:52]}  c5 {[%clk 0:02:57]} 6. h3 {[%clk 0:02:52]}  Nc6 {[%clk 0:02:57]} 7. Be2 {[%clk 0:02:49]}  Bd7 {[%clk 0:02:56]} 8. Ne5 {[%clk 0:02:48]}  Be7 {[%clk 0:02:51]} 9. O-O {[%clk 0:02:46]}  O-O {[%clk 0:02:51]} 10. a3 {[%clk 0:02:45]}  cxd4 {[%clk 0:02:47]} 11. exd4 {[%clk 0:02:43]}  Rc8 {[%clk 0:02:47]} 12. Re1 {[%clk 0:02:29]}  Be8 {[%clk 0:02:43]} 13. Bf1 {[%clk 0:02:20]}  Nd7 {[%clk 0:02:41]} 14. Bg3 {[%clk 0:02:13]}  Ndxe5 {[%clk 0:02:40]} 15. dxe5 {[%clk 0:02:10]}  Qb6 {[%clk 0:02:38]} 16. Rb1 {[%clk 0:02:03]}  Na5 {[%clk 0:02:34]} 17. Bd3 {[%clk 0:01:47]}  Nc4 {[%clk 0:02:32]} 18. Qc1 {[%clk 0:01:14]}  Qc7 {[%clk 0:02:22]} 19. Bxc4 {[%clk 0:00:56]}  Qxc4 {[%clk 0:02:13]} 20. Qf4 {[%clk 0:00:55]}  Qxf4 {[%clk 0:02:04]} 21. Bxf4 {[%clk 0:00:55]}  d4 {[%clk 0:01:57]} 22. Ne4 {[%clk 0:00:54]}  Rxc2 {[%clk 0:01:56]} 23. Nd6 {[%clk 0:00:53]}  Bc6 {[%clk 0:01:54]} 24. b4 {[%clk 0:00:49]}  Rd8 {[%clk 0:01:45]} 25. Rbd1 {[%clk 0:00:49]}  Bh4 {[%clk 0:01:27]} 26. g3 {[%clk 0:00:47]}  Be7 {[%clk 0:01:24]} 27. Rxd4 {[%clk 0:00:47]}  g5 {[%clk 0:01:19]} 28. Be3 {[%clk 0:00:46]}  f5 {[%clk 0:01:19]} 29. exf6 {[%clk 0:00:45]}  Bxd6 {[%clk 0:01:18]} 30. Red1 {[%clk 0:00:46]}  Bd5 {[%clk 0:01:17]} 31. Bxg5 {[%clk 0:00:40]}  Kf7 {[%clk 0:01:17]} 32. Rh4 {[%clk 0:00:33]}  Kg6 {[%clk 0:01:05]} 33. Rg4 {[%clk 0:00:33]}  h5 {[%clk 0:01:02]} 34. Rf4 {[%clk 0:00:10]}  Kxg5 {[%clk 0:00:55]} 35. h4+ {[%clk 0:00:11]}  Kg6 {[%clk 0:00:55]} 36. Rfd4 {[%clk 0:00:08]}  Kxf6 {[%clk 0:00:55]} 37. Rxd5 {[%clk 0:00:08]}  exd5 {[%clk 0:00:55]} 38. Rxd5 {[%clk 0:00:09]}  Bc7 {[%clk 0:00:52]} 39. Rxh5 {[%clk 0:00:08]}  Rdd2 {[%clk 0:00:51]} 0-1


[Site "https://www.chess.com"]

[Event "Titled Tuesday Blitz February 07 Late 2023"]
[White "Battlecruiser_Operational"]
[Black "Balog, Imre"]
[BlackFideId "728446"]
[WhiteElo "2371"]
[BlackElo "2615"]
[Result "1-0"]
[Round "03"]
[TimeControl "180+2"]
[Date "2023.02.07"]
[WhiteClock "0:00:15"]
[BlackClock "0:00:12"]

1. d4 {[%clk 0:03:00]}  Nf6 {[%clk 0:02:58]} 2. c4 {[%clk 0:02:59]}  g6 {[%clk 0:02:58]} 3. Nc3 {[%clk 0:02:58]}  Bg7 {[%clk 0:02:57]} 4. e4 {[%clk 0:02:58]}  d6 {[%clk 0:02:57]} 5. Nf3 {[%clk 0:02:58]}  O-O {[%clk 0:02:56]} 6. Be2 {[%clk 0:02:54]}  e5 {[%clk 0:02:52]} 7. Be3 {[%clk 0:02:52]}  Nc6 {[%clk 0:02:41]} 8. d5 {[%clk 0:02:49]}  Ne7 {[%clk 0:02:38]} 9. Nd2 {[%clk 0:02:48]}  Ne8 {[%clk 0:02:22]} 10. O-O {[%clk 0:02:43]}  f5 {[%clk 0:02:19]} 11. f3 {[%clk 0:02:42]}  f4 {[%clk 0:02:00]} 12. Bf2 {[%clk 0:02:41]}  g5 {[%clk 0:01:55]} 13. b4 {[%clk 0:02:40]}  a5 {[%clk 0:01:22]} 14. bxa5 {[%clk 0:02:37]}  Rxa5 {[%clk 0:01:17]} 15. Nb3 {[%clk 0:02:36]}  Ra8 {[%clk 0:01:15]} 16. c5 {[%clk 0:02:36]}  dxc5 {[%clk 0:00:41]} 17. Nxc5 {[%clk 0:02:34]}  Nd6 {[%clk 0:00:37]} 18. a4 {[%clk 0:02:27]}  b6 {[%clk 0:00:35]} 19. Ne6 {[%clk 0:02:23]}  Bxe6 {[%clk 0:00:33]} 20. dxe6 {[%clk 0:02:24]}  Ng6 {[%clk 0:00:20]} 21. Nd5 {[%clk 0:02:17]}  Re8 {[%clk 0:00:19]} 22. Qb3 {[%clk 0:02:12]}  Kh8 {[%clk 0:00:19]} 23. Rfc1 {[%clk 0:02:06]}  Ra7 {[%clk 0:00:17]} 24. Nb4 {[%clk 0:01:52]}  Ne7 {[%clk 0:00:15]} 25. Ra2 {[%clk 0:01:41]}  Qa8 {[%clk 0:00:15]} 26. h3 {[%clk 0:01:20]}  Bf6 {[%clk 0:00:15]} 27. Nd5 {[%clk 0:01:12]}  Nxd5 {[%clk 0:00:13]} 28. exd5 {[%clk 0:01:12]}  Qd8 {[%clk 0:00:12]} 29. Bd3 {[%clk 0:00:40]}  Kg7 {[%clk 0:00:11]} 30. Qc2 {[%clk 0:00:37]}  h6 {[%clk 0:00:11]} 31. Bh7 {[%clk 0:00:36]}  Kh8 {[%clk 0:00:11]} 32. Bg6 {[%clk 0:00:35]}  Rg8 {[%clk 0:00:10]} 33. Bd3 {[%clk 0:00:34]}  Re8 {[%clk 0:00:10]} 34. Be2 {[%clk 0:00:27]}  Qe7 {[%clk 0:00:10]} 35. Qc6 {[%clk 0:00:26]}  Rea8 {[%clk 0:00:10]} 36. a5 {[%clk 0:00:20]}  Qe8 {[%clk 0:00:10]} 37. Qxe8+ {[%clk 0:00:18]}  Nxe8 {[%clk 0:00:10]} 38. a6 {[%clk 0:00:18]}  Nd6 {[%clk 0:00:09]} 39. Rac2 {[%clk 0:00:17]}  b5 {[%clk 0:00:10]} 40. Rxc7 {[%clk 0:00:17]}  Rxc7 {[%clk 0:00:09]} 41. Rxc7 {[%clk 0:00:17]}  Rxa6 {[%clk 0:00:10]} 42. Rc6 {[%clk 0:00:16]}  Ra1+ {[%clk 0:00:09]} 43. Kh2 {[%clk 0:00:17]}  Nc4 {[%clk 0:00:09]} 44. Bxc4 {[%clk 0:00:17]}  bxc4 {[%clk 0:00:09]} 45. Rxc4 {[%clk 0:00:17]}  Ra2 {[%clk 0:00:09]} 46. Bc5 {[%clk 0:00:17]}  e4 {[%clk 0:00:09]} 47. e7 {[%clk 0:00:16]}  Bxe7 {[%clk 0:00:07]} 48. Bxe7 {[%clk 0:00:17]}  exf3 {[%clk 0:00:08]} 49. h4 {[%clk 0:00:15]}  Rxg2+ {[%clk 0:00:08]} 50. Kh1 {[%clk 0:00:14]}  Rd2 {[%clk 0:00:09]} 51. Bf6+ {[%clk 0:00:13]}  Kg8 {[%clk 0:00:09]} 52. Rd4 {[%clk 0:00:14]}  Rxd4 {[%clk 0:00:08]} 53. Bxd4 {[%clk 0:00:14]}  g4 {[%clk 0:00:09]} 54. Be5 {[%clk 0:00:13]}  Kf7 {[%clk 0:00:09]} 55. Bxf4 {[%clk 0:00:13]}  h5 {[%clk 0:00:09]} 56. Kg1 {[%clk 0:00:13]}  Ke7 {[%clk 0:00:10]} 57. Kf2 {[%clk 0:00:13]}  Kf6 {[%clk 0:00:10]} 58. Ke3 {[%clk 0:00:13]}  Kf5 {[%clk 0:00:10]} 59. Bg3 {[%clk 0:00:13]}  Kf6 {[%clk 0:00:10]} 60. Kd4 {[%clk 0:00:13]}  Ke7 {[%clk 0:00:09]} 61. Ke5 {[%clk 0:00:13]}  Kd7 {[%clk 0:00:10]} 62. d6 {[%clk 0:00:13]}  Kd8 {[%clk 0:00:10]} 63. Ke6 {[%clk 0:00:13]}  Ke8 {[%clk 0:00:10]} 64. d7+ {[%clk 0:00:13]}  Kd8 {[%clk 0:00:11]} 65. Bf2 {[%clk 0:00:13]}  g3 {[%clk 0:00:09]} 66. Bxg3 {[%clk 0:00:13]}  f2 {[%clk 0:00:08]} 67. Bxf2 {[%clk 0:00:13]}  Kc7 {[%clk 0:00:08]} 68. Ke7 {[%clk 0:00:14]}  Kc6 {[%clk 0:00:08]} 69. d8=Q {[%clk 0:00:13]}  Kb7 {[%clk 0:00:09]} 70. Be3 {[%clk 0:00:14]}  Kc6 {[%clk 0:00:09]} 71. Qd6+ {[%clk 0:00:14]}  Kb5 {[%clk 0:00:09]} 72. Qc7 {[%clk 0:00:14]}  Ka4 {[%clk 0:00:09]} 73. Bh6 {[%clk 0:00:14]}  Ka3 {[%clk 0:00:10]} 74. Kd6 {[%clk 0:00:14]}  Ka2 {[%clk 0:00:10]} 75. Qb7 {[%clk 0:00:14]}  Ka1 {[%clk 0:00:11]} 76. Kc5 {[%clk 0:00:15]}  Ka2 {[%clk 0:00:12]} 77. Kc4 {[%clk 0:00:15]}  Ka3 {[%clk 0:00:12]} 78. Qb3# {[%clk 0:00:15]} 1-0


[Site "https://www.chess.com"]

[Event "Titled Tuesday Blitz February 07 Late 2023"]
[White "Fernandez Siles, Luis"]
[Black "Manu_ChessExcelsior"]
[WhiteFideId "2209420"]
[WhiteElo "2218"]
[BlackElo "1881"]
[Result "1-0"]
[Round "03"]
[TimeControl "180+2"]
[Date "2023.02.07"]
[WhiteClock "0:00:30"]
[BlackClock "0:00:04"]

1. d4 {[%clk 0:02:59]}  d5 {[%clk 0:02:56]} 2. c4 {[%clk 0:02:58]}  e6 {[%clk 0:02:56]} 3. Nc3 {[%clk 0:02:58]}  a6 {[%clk 0:02:55]} 4. e3 {[%clk 0:02:55]}  Nf6 {[%clk 0:02:30]} 5. Nf3 {[%clk 0:02:54]}  Be7 {[%clk 0:02:23]} 6. a3 {[%clk 0:02:48]}  b6 {[%clk 0:02:22]} 7. Bd3 {[%clk 0:02:47]}  O-O {[%clk 0:02:22]} 8. O-O {[%clk 0:02:47]}  Bb7 {[%clk 0:02:22]} 9. Qe2 {[%clk 0:02:47]}  Nbd7 {[%clk 0:02:03]} 10. Rd1 {[%clk 0:02:46]}  Ne4 {[%clk 0:01:56]} 11. Bxe4 {[%clk 0:02:32]}  dxe4 {[%clk 0:01:56]} 12. Nd2 {[%clk 0:02:32]}  Nf6 {[%clk 0:01:52]} 13. f3 {[%clk 0:02:30]}  exf3 {[%clk 0:01:49]} 14. Nxf3 {[%clk 0:02:30]}  Qc8 {[%clk 0:01:27]} 15. e4 {[%clk 0:02:23]}  Rd8 {[%clk 0:01:15]} 16. e5 {[%clk 0:02:16]}  Ne8 {[%clk 0:01:10]} 17. Ng5 {[%clk 0:01:50]}  g6 {[%clk 0:00:43]} 18. Nge4 {[%clk 0:01:45]}  c5 {[%clk 0:00:36]} 19. d5 {[%clk 0:01:33]}  exd5 {[%clk 0:00:33]} 20. Nxd5 {[%clk 0:01:27]}  Bxd5 {[%clk 0:00:29]} 21. cxd5 {[%clk 0:01:22]}  Qf5 {[%clk 0:00:24]} 22. Ng3 {[%clk 0:01:12]}  Qd7 {[%clk 0:00:17]} 23. Bf4 {[%clk 0:01:03]}  Rac8 {[%clk 0:00:16]} 24. e6 {[%clk 0:00:59]}  fxe6 {[%clk 0:00:13]} 25. dxe6 {[%clk 0:00:59]}  Qb5 {[%clk 0:00:14]} 26. Qf3 {[%clk 0:00:38]}  Ng7 {[%clk 0:00:10]} 27. Rd7 {[%clk 0:00:33]}  Rxd7 {[%clk 0:00:08]} 28. exd7 {[%clk 0:00:33]}  Qxd7 {[%clk 0:00:09]} 29. Re1 {[%clk 0:00:33]}  Qc6 {[%clk 0:00:08]} 30. Qxc6 {[%clk 0:00:31]}  Rxc6 {[%clk 0:00:07]} 31. Rxe7 {[%clk 0:00:31]}  Rf6 {[%clk 0:00:06]} 32. Be5 {[%clk 0:00:31]}  Re6 {[%clk 0:00:05]} 33. Rxe6 {[%clk 0:00:30]}  Nxe6 {[%clk 0:00:04]} 1-0


[Site "https://www.chess.com"]

[Event "Titled Tuesday Blitz February 07 Late 2023"]
[White "Gutenev, Alexander"]
[Black "Kovacs, Klara"]
[WhiteFideId "4195540"]
[BlackFideId "733210"]
[WhiteElo "2455"]
[BlackElo "2121"]
[Result "1-0"]
[Round "03"]
[TimeControl "180+2"]
[Date "2023.02.07"]
[WhiteClock "0:02:14"]
[BlackClock "0:01:13"]

1. b3 {[%clk 0:02:54]}  d5 {[%clk 0:02:32]} 2. Bb2 {[%clk 0:02:54]}  Nc6 {[%clk 0:02:21]} 3. Nf3 {[%clk 0:02:52]}  Nf6 {[%clk 0:02:21]} 4. e3 {[%clk 0:02:48]}  Bg4 {[%clk 0:02:18]} 5. Bb5 {[%clk 0:02:47]}  e6 {[%clk 0:02:15]} 6. h3 {[%clk 0:02:46]}  Bh5 {[%clk 0:02:12]} 7. g4 {[%clk 0:02:45]}  Bg6 {[%clk 0:02:10]} 8. Ne5 {[%clk 0:02:45]}  Qd6 {[%clk 0:02:02]} 9. f4 {[%clk 0:02:42]}  Be4 {[%clk 0:02:00]} 10. O-O {[%clk 0:02:38]}  a6 {[%clk 0:01:57]} 11. Ba3 {[%clk 0:02:38]}  Qd8 {[%clk 0:01:38]} 12. Nxc6 {[%clk 0:02:34]}  Qd7 {[%clk 0:01:35]} 13. Bxf8 {[%clk 0:02:15]}  Kxf8 {[%clk 0:01:31]} 14. Ne5 {[%clk 0:02:15]}  Qxb5 {[%clk 0:01:30]} 15. Nc3 {[%clk 0:02:15]}  Qb6 {[%clk 0:01:25]} 16. g5 {[%clk 0:02:14]}  d4 {[%clk 0:01:15]} 17. gxf6 {[%clk 0:02:14]}  dxc3 {[%clk 0:01:13]} 18. Nd7+ {[%clk 0:02:14]} 1-0


[Site "https://www.chess.com"]

[Event "Titled Tuesday Blitz February 07 Late 2023"]
[White "Zarnicki, Pablo"]
[Black "Bouget, Alexandre"]
[WhiteFideId "100137"]
[BlackFideId "681318"]
[WhiteElo "2514"]
[BlackElo "2267"]
[Result "1-0"]
[Round "03"]
[TimeControl "180+2"]
[Date "2023.02.07"]
[WhiteClock "0:02:03"]
[BlackClock "0:00:47"]

1. e4 {[%clk 0:03:00]}  e6 {[%clk 0:02:51]} 2. d3 {[%clk 0:02:55]}  d5 {[%clk 0:02:46]} 3. Qe2 {[%clk 0:02:52]}  Be7 {[%clk 0:02:42]} 4. Nf3 {[%clk 0:02:52]}  c5 {[%clk 0:02:41]} 5. g3 {[%clk 0:02:52]}  Nc6 {[%clk 0:02:39]} 6. Bg2 {[%clk 0:02:52]}  Nf6 {[%clk 0:02:38]} 7. e5 {[%clk 0:02:53]}  Nd7 {[%clk 0:02:37]} 8. O-O {[%clk 0:02:53]}  b6 {[%clk 0:02:36]} 9. c4 {[%clk 0:02:53]}  d4 {[%clk 0:02:21]} 10. h4 {[%clk 0:02:43]}  h6 {[%clk 0:02:17]} 11. Na3 {[%clk 0:02:40]}  Bb7 {[%clk 0:02:14]} 12. Re1 {[%clk 0:02:32]}  a6 {[%clk 0:02:09]} 13. Nc2 {[%clk 0:02:31]}  Qc7 {[%clk 0:02:08]} 14. a3 {[%clk 0:02:25]}  g5 {[%clk 0:02:07]} 15. hxg5 {[%clk 0:02:23]}  hxg5 {[%clk 0:02:08]} 16. Bxg5 {[%clk 0:02:19]}  Bxg5 {[%clk 0:02:04]} 17. Nxg5 {[%clk 0:02:19]}  Ncxe5 {[%clk 0:02:04]} 18. f4 {[%clk 0:02:17]}  Nc6 {[%clk 0:01:44]} 19. Nxf7 {[%clk 0:02:16]}  Kxf7 {[%clk 0:01:36]} 20. Qxe6+ {[%clk 0:02:16]}  Kg7 {[%clk 0:01:37]} 21. Qg4+ {[%clk 0:02:15]}  Kf8 {[%clk 0:01:35]} 22. Qf5+ {[%clk 0:02:14]}  Kg7 {[%clk 0:01:25]} 23. Bxc6 {[%clk 0:02:14]}  Nf6 {[%clk 0:01:10]} 24. Re6 {[%clk 0:02:07]}  Raf8 {[%clk 0:01:01]} 25. Rae1 {[%clk 0:02:06]}  Rf7 {[%clk 0:00:57]} 26. Qg5+ {[%clk 0:02:06]}  Kf8 {[%clk 0:00:51]} 27. Re8+ {[%clk 0:02:02]}  Nxe8 {[%clk 0:00:47]} 28. Rxe8# {[%clk 0:02:03]} 1-0


[Site "https://www.chess.com"]

[Event "Titled Tuesday Blitz February 07 Late 2023"]
[White "Kochetov, Andrey"]
[Black "Li, Hui"]
[WhiteFideId "24130532"]
[BlackFideId "15400310"]
[WhiteElo "2165"]
[BlackElo "1963"]
[Result "0-1"]
[Round "03"]
[TimeControl "180+2"]
[Date "2023.02.07"]
[WhiteClock "0:00:01"]
[BlackClock "0:00:29"]

1. e4 {[%clk 0:03:00]}  e5 {[%clk 0:02:59]} 2. Nf3 {[%clk 0:03:01]}  Nf6 {[%clk 0:02:55]} 3. Nxe5 {[%clk 0:02:59]}  d6 {[%clk 0:02:39]} 4. Nf3 {[%clk 0:02:59]}  Nxe4 {[%clk 0:02:39]} 5. d4 {[%clk 0:02:59]}  d5 {[%clk 0:02:39]} 6. Bd3 {[%clk 0:03:00]}  Be7 {[%clk 0:02:40]} 7. O-O {[%clk 0:02:58]}  Nc6 {[%clk 0:02:41]} 8. h3 {[%clk 0:02:54]}  O-O {[%clk 0:02:37]} 9. c4 {[%clk 0:02:53]}  Nb4 {[%clk 0:02:38]} 10. Nc3 {[%clk 0:02:53]}  Nxd3 {[%clk 0:02:37]} 11. Qxd3 {[%clk 0:02:54]}  Nxc3 {[%clk 0:02:35]} 12. bxc3 {[%clk 0:02:55]}  dxc4 {[%clk 0:02:27]} 13. Qxc4 {[%clk 0:02:55]}  Be6 {[%clk 0:02:28]} 14. Qd3 {[%clk 0:02:52]}  c5 {[%clk 0:02:24]} 15. a4 {[%clk 0:02:40]}  cxd4 {[%clk 0:02:21]} 16. cxd4 {[%clk 0:02:39]}  Rc8 {[%clk 0:02:17]} 17. Re1 {[%clk 0:02:31]}  Bf6 {[%clk 0:02:08]} 18. Bf4 {[%clk 0:02:20]}  Qd7 {[%clk 0:01:57]} 19. Ne5 {[%clk 0:02:12]}  Bxe5 {[%clk 0:01:48]} 20. Bxe5 {[%clk 0:01:55]}  Bd5 {[%clk 0:01:42]} 21. a5 {[%clk 0:01:42]}  f6 {[%clk 0:01:40]} 22. Bf4 {[%clk 0:01:36]}  Rfe8 {[%clk 0:01:39]} 23. Rac1 {[%clk 0:01:29]}  Rxe1+ {[%clk 0:01:35]} 24. Rxe1 {[%clk 0:01:27]}  Re8 {[%clk 0:01:35]} 25. Rc1 {[%clk 0:01:17]}  Rc8 {[%clk 0:01:34]} 26. Qg3 {[%clk 0:01:09]}  Rxc1+ {[%clk 0:01:27]} 27. Bxc1 {[%clk 0:01:10]}  Kf7 {[%clk 0:01:26]} 28. Qb8 {[%clk 0:01:02]}  Qc6 {[%clk 0:01:22]} 29. Ba3 {[%clk 0:00:27]}  Bxg2 {[%clk 0:01:20]} 30. Qg3 {[%clk 0:00:11]}  Bd5 {[%clk 0:01:15]} 31. Qe3 {[%clk 0:00:08]}  Qe6 {[%clk 0:01:06]} 32. Qc3 {[%clk 0:00:07]}  Qe4 {[%clk 0:01:00]} 33. Kf1 {[%clk 0:00:07]}  h5 {[%clk 0:00:44]} 34. Qc7+ {[%clk 0:00:08]}  Kg6 {[%clk 0:00:42]} 35. Qc3 {[%clk 0:00:08]}  Qf3 {[%clk 0:00:33]} 36. Qc2+ {[%clk 0:00:03]}  Be4 {[%clk 0:00:32]} 37. Qb2 {[%clk 0:00:02]}  Qxh3+ {[%clk 0:00:29]} 38. Ke2 {[%clk 0:00:02]}  Qd3+ {[%clk 0:00:29]} 39. Ke1 {[%clk 0:00:02]}  Bf3 {[%clk 0:00:29]} 40. Qc1 {[%clk 0:00:01]}  Qe2# {[%clk 0:00:29]} 0-1


[Site "https://www.chess.com"]

[Event "Titled Tuesday Blitz February 07 Late 2023"]
[White "Kostiukov, Alexandr"]
[Black "Petrovic, Aleksa"]
[WhiteFideId "14108100"]
[BlackFideId "967629"]
[WhiteElo "2271"]
[BlackElo "2332"]
[Result "0-1"]
[Round "03"]
[TimeControl "180+2"]
[Date "2023.02.07"]
[WhiteClock "0:00:03"]
[BlackClock "0:01:31"]

1. g3 {[%clk 0:02:56]}  d5 {[%clk 0:02:58]} 2. Bg2 {[%clk 0:02:56]}  Nf6 {[%clk 0:02:57]} 3. d3 {[%clk 0:02:56]}  c6 {[%clk 0:02:56]} 4. e4 {[%clk 0:02:56]}  Bg4 {[%clk 0:02:53]} 5. f3 {[%clk 0:02:56]}  Bc8 {[%clk 0:02:52]} 6. e5 {[%clk 0:02:49]}  Nfd7 {[%clk 0:02:51]} 7. f4 {[%clk 0:02:50]}  e6 {[%clk 0:02:50]} 8. Nf3 {[%clk 0:02:49]}  c5 {[%clk 0:02:50]} 9. c4 {[%clk 0:02:49]}  d4 {[%clk 0:02:48]} 10. O-O {[%clk 0:02:49]}  Nc6 {[%clk 0:02:48]} 11. Qe2 {[%clk 0:02:44]}  Qc7 {[%clk 0:02:48]} 12. Nbd2 {[%clk 0:02:43]}  b6 {[%clk 0:02:46]} 13. Ne4 {[%clk 0:02:42]}  Bb7 {[%clk 0:02:46]} 14. Bd2 {[%clk 0:02:42]}  a5 {[%clk 0:02:44]} 15. a3 {[%clk 0:02:42]}  Be7 {[%clk 0:02:38]} 16. h4 {[%clk 0:02:40]}  h5 {[%clk 0:02:35]} 17. Kh2 {[%clk 0:02:39]}  g6 {[%clk 0:02:34]} 18. Qf2 {[%clk 0:02:21]}  a4 {[%clk 0:02:32]} 19. Rfe1 {[%clk 0:02:18]}  Na5 {[%clk 0:02:31]} 20. Bxa5 {[%clk 0:01:50]}  bxa5 {[%clk 0:02:30]} 21. Rab1 {[%clk 0:01:45]}  Bc6 {[%clk 0:02:22]} 22. b3 {[%clk 0:01:12]}  Kf8 {[%clk 0:02:14]} 23. bxa4 {[%clk 0:01:09]}  Bxa4 {[%clk 0:02:15]} 24. Nfg5 {[%clk 0:00:59]}  Kg7 {[%clk 0:02:04]} 25. Nd6 {[%clk 0:00:55]}  Bxd6 {[%clk 0:01:51]} 26. exd6 {[%clk 0:00:48]}  Qxd6 {[%clk 0:01:52]} 27. Bxa8 {[%clk 0:00:47]}  Rxa8 {[%clk 0:01:53]} 28. Rb2 {[%clk 0:00:21]}  Nf6 {[%clk 0:01:52]} 29. Kh3 {[%clk 0:00:18]}  Ng4 {[%clk 0:01:50]} 30. Qf3 {[%clk 0:00:18]}  Bc6 {[%clk 0:01:49]} 31. Qe2 {[%clk 0:00:13]}  Re8 {[%clk 0:01:43]} 32. Nf3 {[%clk 0:00:06]}  Ba8 {[%clk 0:01:42]} 33. Ne5 {[%clk 0:00:05]}  Ne3 {[%clk 0:01:35]} 34. Reb1 {[%clk 0:00:03]}  f6 {[%clk 0:01:31]} 35. Nf3 {[%clk 0:00:03]}  Qc6 {[%clk 0:01:31]} 0-1


[Site "https://www.chess.com"]

[Event "Titled Tuesday Blitz February 07 Late 2023"]
[White "reevecanada"]
[Black "Lopez Del Alamo, Antonio"]
[BlackFideId "2227339"]
[WhiteElo "2474"]
[BlackElo "2280"]
[Result "1-0"]
[Round "03"]
[TimeControl "180+2"]
[Date "2023.02.07"]
[WhiteClock "0:02:29"]
[BlackClock "0:00:27"]

1. e4 {[%clk 0:02:58]}  c5 {[%clk 0:01:53]} 2. Bc4 {[%clk 0:02:53]}  e6 {[%clk 0:01:50]} 3. b4 {[%clk 0:02:52]}  cxb4 {[%clk 0:01:39]} 4. d4 {[%clk 0:02:51]}  d5 {[%clk 0:01:38]} 5. exd5 {[%clk 0:02:51]}  exd5 {[%clk 0:01:36]} 6. Bd3 {[%clk 0:02:51]}  Nf6 {[%clk 0:01:34]} 7. Ne2 {[%clk 0:02:52]}  Nc6 {[%clk 0:01:32]} 8. O-O {[%clk 0:02:53]}  Be7 {[%clk 0:01:32]} 9. h3 {[%clk 0:02:54]}  O-O {[%clk 0:01:31]} 10. a3 {[%clk 0:02:53]}  bxa3 {[%clk 0:01:30]} 11. Bxa3 {[%clk 0:02:54]}  Bxa3 {[%clk 0:01:29]} 12. Nxa3 {[%clk 0:02:55]}  Be6 {[%clk 0:01:22]} 13. c3 {[%clk 0:02:55]}  Qd7 {[%clk 0:01:21]} 14. Nc2 {[%clk 0:02:54]}  Bf5 {[%clk 0:01:19]} 15. Bxf5 {[%clk 0:02:53]}  Qxf5 {[%clk 0:01:18]} 16. Ne3 {[%clk 0:02:53]}  Qg5 {[%clk 0:01:12]} 17. Qb3 {[%clk 0:02:51]}  b6 {[%clk 0:01:06]} 18. Kh2 {[%clk 0:02:47]}  Na5 {[%clk 0:01:02]} 19. Qb5 {[%clk 0:02:44]}  Rfc8 {[%clk 0:00:59]} 20. f4 {[%clk 0:02:43]}  Qh5 {[%clk 0:00:50]} 21. g4 {[%clk 0:02:42]}  Qh4 {[%clk 0:00:39]} 22. Nf5 {[%clk 0:02:41]}  Nxg4+ {[%clk 0:00:37]} 23. Kg2 {[%clk 0:02:38]}  Qh5 {[%clk 0:00:32]} 24. Neg3 {[%clk 0:02:36]}  Qg6 {[%clk 0:00:28]} 25. hxg4 {[%clk 0:02:35]}  Qxg4 {[%clk 0:00:28]} 26. Ne7+ {[%clk 0:02:33]}  Kh8 {[%clk 0:00:28]} 27. Nxc8 {[%clk 0:02:33]}  Rxc8 {[%clk 0:00:29]} 28. Qxd5 {[%clk 0:02:32]}  Nc4 {[%clk 0:00:28]} 29. Rfe1 {[%clk 0:02:30]}  h5 {[%clk 0:00:27]} 30. Qxh5+ {[%clk 0:02:29]} 1-0


[Site "https://www.chess.com"]